bitfinex-derivatives/quotes_BNBF0:USTF0_20250116
["timestamp","ask_amount","ask_price","bid_price","bid_amount"]
[1736990933464,3.11579583,712.41,711.27,4.46618717]
[1736990933656,3.11579583,712.4,711.27,4.46618717]
[1736990933857,3.11579583,712.39,711.27,4.46618717]
[1736990934058,3.11579583,712.38,711.27,4.46618717]
[1736990934261,3.11579583,712.37,711.27,4.46618717]
[1736990934461,3.11579583,712.36,711.27,4.46618717]
[1736990934758,1.90018601,712.35,711.27,4.46618717]
[1736990934958,1.90018601,712.34,711.27,4.46618717]
[1736990935161,1.90018601,712.33,711.27,4.46618717]
[1736990935360,1.90018601,712.32,711.27,4.46618717]
[1736990935563,1.90018601,712.31,711.27,4.46618717]
[1736990935864,1.90018601,712.3,711.27,4.46618717]
[1736990936065,1.90018601,712.29,711.27,4.46618717]
[1736990936264,1.90018601,712.28,711.27,4.46618717]
[1736990936463,1.90018601,712.27,711.27,4.46618717]
[1736990936663,1.14042988,712.26,711.27,4.46618717]
[1736990936864,1.90037756,712.25,711.27,4.46618717]
[1736990937065,1.14042988,712.24,711.27,4.46618717]
[1736990937264,1.14042988,712.23,711.27,4.46618717]
[1736990937463,1.05469153,712.65,711.27,4.46618717]
[1736990937666,3.1166947,712.64,711.27,4.46618717]
[1736990937866,1.05469153,712.52,711.27,4.46618717]
[1736990938167,3.1166947,712.51,711.27,4.46618717]
[1736990938466,3.1166947,712.5,711.27,4.46618717]
[1736990938667,3.1166947,712.49,711.27,4.46618717]
[1736990938966,3.1166947,712.48,711.27,4.46618717]
[1736990939167,3.1166947,712.47,711.27,4.46618717]
[1736990939467,3.1166947,712.46,711.27,4.46618717]
[1736990939668,3.1166947,712.45,711.27,4.46618717]
[1736990939867,3.1166947,712.44,711.27,4.46618717]
[1736990940068,3.1166947,712.43,711.27,4.46618717]
[1736990940264,3.1166947,712.42,711.27,4.46618717]
[1736990940569,3.1166947,712.41,711.27,6.40918717]
[1736990940768,3.1166947,712.4,711.27,6.40918717]
[1736990940969,3.1166947,712.39,711.27,6.40918717]
[1736990941172,3.1166947,712.38,711.27,6.40918717]
[1736990941465,3.1166947,712.37,711.27,6.40918717]
[1736990941769,0.28060723,712.74,711.27,6.40918717]
[1736990941770,3.1166947,712.36,711.27,6.40918717]
[1736990941970,3.1166947,712.35,711.27,6.40918717]
[1736990942266,1.90073666,712.34,711.27,6.40918717]
[1736990942461,1.90073666,712.33,711.27,6.40918717]
[1736990942666,1.90073666,712.32,711.27,6.40918717]
[1736990942861,1.90073666,712.31,711.27,6.40918717]
[1736990943168,1.90073666,712.3,711.27,6.40918717]
[1736990943373,1.90073666,712.29,711.27,6.40918717]
[1736990943664,1.90073666,712.28,711.27,6.40918717]
[1736990943970,1.14076289,712.27,711.27,6.40918717]
[1736990944163,1.14076289,712.26,711.27,6.40918717]
[1736990944363,1.05469153,712.55,711.27,6.40918717]
[1736990944564,3.11715302,712.54,711.27,6.40918717]
[1736990944764,3.11715302,712.53,711.27,6.40918717]
[1736990944969,3.11715302,712.52,711.27,6.40918717]
[1736990945269,3.11715302,712.51,711.27,6.40918717]
[1736990945466,3.11715302,712.5,711.27,6.40918717]
[1736990945667,3.11715302,712.49,711.27,6.40918717]
[1736990945867,3.11715302,712.48,711.27,6.40918717]
[1736990946063,3.11715302,712.47,711.27,7.53318717]
[1736990946365,3.11715302,712.46,711.27,7.53318717]
[1736990946565,3.11715302,712.45,711.27,7.53318717]
[1736990946766,3.11715302,712.44,711.27,7.53318717]
[1736990946968,3.11715302,712.43,711.27,7.53318717]
[1736990947166,3.11715302,712.42,711.27,7.53318717]
[1736990947370,3.11697335,712.41,711.27,7.53318717]
[1736990947571,1.05469153,712.56,711.27,7.53318717]
[1736990947572,1.90101818,712.4,711.27,7.53318717]
[1736990947767,0.28060723,712.74,711.27,7.53318717]
[1736990947768,1.90101818,712.39,711.27,7.53318717]
[1736990947972,1.90101818,712.38,711.27,7.53318717]
[1736990948271,1.90101818,712.37,711.27,7.53318717]
[1736990948471,1.90101818,712.36,711.27,7.53318717]
[1736990948671,1.90101818,712.35,711.27,7.53318717]
[1736990948872,1.90101818,712.34,711.27,7.53318717]
[1736990949072,1.90101818,712.33,711.27,7.53318717]
[1736990949368,1.14093391,712.32,711.27,7.53318717]
[1736990949563,1.14093391,712.31,711.27,8.92518717]
[1736990949764,1.14093391,712.3,711.27,8.92518717]
[1736990949966,1.05469153,712.63,711.27,8.92518717]
[1736990950166,3.11640712,712.62,711.27,8.92518717]
[1736990950369,3.11640712,712.61,711.27,8.92518717]
[1736990950565,3.11640712,712.6,711.27,8.92518717]
[1736990950769,3.11640712,712.59,711.27,8.92518717]
[1736990950972,3.11640712,712.58,711.27,8.92518717]
[1736990951172,3.11640712,712.57,711.27,8.92518717]
[1736990951475,3.11640712,712.56,711.27,8.92518717]
[1736990951768,3.11640712,712.55,711.27,8.92518717]
[1736990951970,3.11640712,712.54,711.27,8.92518717]
[1736990952171,3.11640712,712.53,711.29,1.04753164]
[1736990952372,3.11640712,712.52,711.29,1.04753164]
[1736990952571,3.11640712,712.51,711.31,0.28117135]
[1736990952772,1.05469153,712.6,711.31,0.28117135]
[1736990952773,3.11640712,712.5,711.31,0.28117135]
[1736990952971,3.11640712,712.49,711.31,0.28117135]
[1736990953171,3.11640712,712.48,711.31,0.28117135]
[1736990953366,3.11640712,712.47,711.31,0.28117135]
[1736990953565,3.11640712,712.46,711.31,0.28117135]
[1736990953763,3.11640712,712.45,711.31,0.28117135]
[1736990953969,3.11640712,712.44,711.31,0.28117135]
[1736990954171,3.11640712,712.43,711.31,0.28117135]
[1736990954368,3.11640712,712.42,711.31,0.28117135]
[1736990954567,3.11640712,712.41,711.31,0.28117135]
[1736990954768,1.90056554,712.4,711.31,0.28117135]
[1736990954968,1.90056554,712.39,711.31,0.28117135]
[1736990955172,0.28060723,712.74,711.31,0.28117135]
[1736990955173,1.90056554,712.38,711.31,0.28117135]
[1736990955370,1.90056554,712.37,711.31,3.66617135]
[1736990955572,1.05469153,712.64,711.31,3.66617135]
[1736990955573,1.90056554,712.36,711.31,3.66617135]
[1736990955767,1.90056554,712.35,711.31,3.66617135]
[1736990955972,1.90056554,712.34,711.31,3.66617135]
[1736990956173,1.14066455,712.33,711.31,3.66617135]
[1736990956369,1.14066455,712.32,711.31,3.66617135]
[1736990956570,1.05469153,712.6,711.31,3.66617135]
[1736990956774,3.11584572,712.59,711.31,3.66617135]
[1736990956970,3.11584572,712.58,711.31,3.66617135]
[1736990957175,3.11584572,712.57,711.31,3.66617135]
[1736990957373,3.11584572,712.56,711.31,3.66617135]
[1736990957575,3.11584572,712.55,711.31,3.66617135]
[1736990957877,3.11584572,712.54,711.31,3.66617135]
[1736990958078,0.28060723,712.74,711.31,3.66617135]
[1736990958079,3.11584572,712.53,711.31,3.66617135]
[1736990958273,3.11584572,712.52,711.31,3.66617135]
[1736990958470,3.11584572,712.51,711.31,3.66617135]
[1736990958670,3.11584572,712.5,711.31,3.66617135]
[1736990958874,3.11584572,712.49,711.31,3.66617135]
[1736990959176,3.11584572,712.48,711.31,3.66617135]
[1736990959480,3.11584572,712.47,711.31,3.66617135]
[1736990959668,3.11584572,712.46,711.31,3.66617135]
[1736990959971,3.11584572,712.45,711.31,3.66617135]
[1736990960176,3.11584572,712.44,711.31,3.66617135]
[1736990960475,3.11584572,712.43,711.31,3.66617135]
[1736990960675,1.90022426,712.42,711.31,3.66617135]
[1736990960874,1.90022426,712.41,711.31,3.66617135]
[1736990961076,1.90022426,712.4,711.31,3.66617135]
[1736990961276,1.90022426,712.39,711.31,3.66617135]
[1736990961475,1.05469153,712.65,711.31,3.66617135]
[1736990961476,1.90022426,712.38,711.31,3.66617135]
[1736990961675,1.90022426,712.37,711.31,3.66617135]
[1736990961871,1.90022426,712.36,711.31,3.66617135]
[1736990962071,1.05469153,712.65,711.31,3.66617135]
[1736990962072,1.90022426,712.35,711.31,3.66617135]
[1736990962269,1.14046085,712.34,711.31,3.66617135]
[1736990962470,1.05469153,712.65,711.31,3.66617135]
[1736990962674,3.11565733,712.64,711.31,3.66617135]
[1736990962872,3.11565733,712.63,711.31,3.66617135]
[1736990963176,3.11565733,712.62,711.31,3.66617135]
[1736990963376,3.11565733,712.61,711.31,3.66617135]
[1736990963677,3.11565733,712.6,711.31,3.66617135]
[1736990963873,3.11565733,712.59,711.31,3.66617135]
[1736990964074,3.11565733,712.58,711.31,3.66617135]
[1736990964271,3.11565733,712.57,711.31,3.66617135]
[1736990964475,3.11565733,712.56,711.31,3.66617135]
[1736990964676,3.11565733,712.55,711.31,3.66617135]
[1736990964874,3.11565733,712.54,711.31,5.30017135]
[1736990965075,1.1403924,712.53,711.31,5.30017135]
[1736990965277,3.11552999,712.52,711.31,5.30017135]
[1736990965477,3.11552999,712.51,711.31,5.30017135]
[1736990965775,3.11552999,712.5,711.31,5.30017135]
[1736990965971,3.11552999,712.49,711.31,5.30017135]
[1736990966177,3.11552999,712.48,711.31,5.30017135]
[1736990966378,1.9000607,712.47,711.31,5.30017135]
[1736990966679,1.9000607,712.46,711.31,5.30017135]
[1736990966879,1.9000607,712.45,711.31,5.30017135]
[1736990967080,0.7596683,712.44,711.31,5.30017135]
[1736990967274,1.89985011,712.43,711.31,5.30017135]
[1736990967477,1.14002084,712.42,711.31,5.30017135]
[1736990967678,0.28060723,712.74,711.31,5.30017135]
[1736990967874,3.11463545,712.73,711.31,5.30017135]
[1736990968082,3.11463545,712.72,711.31,5.30017135]
[1736990968379,3.11463545,712.71,711.31,5.30017135]
[1736990968579,3.11463545,712.7,711.31,5.30017135]
[1736990968780,3.11463545,712.69,711.31,5.30017135]
[1736990968976,3.11463545,712.68,711.31,5.30017135]
[1736990969182,3.11463545,712.67,711.31,5.30017135]
[1736990969381,3.11463545,712.66,711.31,5.30017135]
[1736990969583,3.11463545,712.65,711.31,5.30017135]
[1736990969785,3.11463545,712.64,711.31,5.30017135]
[1736990969980,3.11463545,712.63,711.31,5.30017135]
[1736990970176,3.11463545,712.62,711.31,5.30017135]
[1736990970376,1.89949095,712.61,711.31,5.30017135]
[1736990970577,1.89949095,712.6,711.31,5.30017135]
[1736990970775,1.89949095,712.59,711.31,5.30017135]
[1736990970982,1.89949095,712.58,711.31,5.30017135]
[1736990971182,1.89949095,712.57,711.31,5.30017135]
[1736990971381,1.89949095,712.56,711.31,5.30017135]
[1736990971576,1.89949095,712.55,711.31,5.30017135]
[1736990971776,1.89949095,712.54,711.31,5.30017135]
[1736990971979,1.89949095,712.53,711.31,5.30017135]
[1736990972175,0.28060723,712.74,711.31,5.30017135]
[1736990972379,3.11194464,712.73,711.31,5.30017135]
[1736990972680,3.11194464,712.72,711.31,5.30017135]
[1736990972880,3.11194464,712.71,711.31,5.30017135]
[1736990973081,3.11194464,712.7,711.31,5.30017135]
[1736990973281,3.11194464,712.69,711.31,5.30017135]
[1736990973484,3.11171734,712.68,711.31,5.30017135]
[1736990973782,1.89785585,712.67,711.31,6.86417135]
[1736990973981,1.89785585,712.66,711.31,6.86417135]
[1736990974184,1.89785585,712.65,711.31,7.98817135]
[1736990974483,1.89785585,712.64,711.31,7.98817135]
[1736990974786,1.89785585,712.63,711.31,7.98817135]
[1736990974988,1.89785585,712.62,711.31,7.98817135]
[1736990975180,1.89785585,712.61,711.31,7.98817135]
[1736990975377,1.89785585,712.6,711.31,7.98817135]
[1736990975581,1.89785585,712.59,711.31,7.707]
[1736990975783,1.89785585,712.58,711.31,7.707]
[1736990975979,1.13905036,712.57,711.31,7.707]
[1736990976285,1.05469153,713.1,711.31,7.707]
[1736990976481,1.05469153,712.9,711.32,1.04753164]
[1736990976683,3.11005347,712.89,711.32,1.04753164]
[1736990976979,3.11005347,712.88,711.32,2.17153164]
[1736990977184,3.11005347,712.87,711.32,2.17153164]
[1736990977379,3.11005347,712.86,711.32,2.17153164]
[1736990977579,1.05469153,712.9,711.32,1.124]
[1736990977580,3.11005347,712.85,711.32,1.124]
[1736990977784,3.11005347,712.84,711.32,1.124]
[1736990977985,3.11005347,712.83,711.32,1.124]
[1736990978285,3.11005347,712.82,711.32,1.124]
[1736990978489,3.11005347,712.81,711.32,1.124]
[1736990978687,3.11005347,712.8,711.32,1.124]
[1736990978887,3.11005347,712.79,711.32,1.124]
[1736990979088,3.11005347,712.78,711.32,1.124]
[1736990979389,3.11005347,712.77,711.32,1.124]
[1736990979586,3.11005347,712.76,711.32,1.124]
[1736990979783,3.1097755,712.75,711.32,1.124]
[1736990979988,3.1097755,712.74,711.32,1.124]
[1736990980189,3.1097755,712.73,711.32,1.124]
[1736990980385,3.1097755,712.72,711.32,1.124]
[1736990980591,3.1097755,712.71,711.32,4.508]
[1736990980791,3.1097755,712.7,711.32,4.508]
[1736990980989,3.1097755,712.69,711.32,4.508]
[1736990981193,3.1097755,712.68,711.32,4.508]
[1736990981393,1.89642443,712.67,711.32,4.508]
[1736990981592,1.89642443,712.66,711.32,4.508]
[1736990981786,1.89642443,712.65,711.32,4.508]
[1736990981990,1.89642443,712.64,711.32,4.508]
[1736990982191,1.89642443,712.63,711.32,4.508]
[1736990982386,1.89642443,712.62,711.32,4.508]
[1736990982586,1.89642443,712.61,711.32,4.508]
[1736990982786,1.89642443,712.6,711.32,4.508]
[1736990982991,1.89642443,712.59,711.32,4.508]
[1736990983289,1.13808002,712.58,711.32,4.508]
[1736990983490,1.05469153,712.94,711.32,4.508]
[1736990983690,3.10854909,712.93,711.32,4.508]
[1736990983888,1.05469153,712.94,711.32,4.508]
[1736990983889,3.10854909,712.92,711.32,4.508]
[1736990984090,3.10854909,712.91,711.32,4.508]
[1736990984293,3.10854909,712.9,711.32,4.508]
[1736990984489,3.10854909,712.89,711.32,4.508]
[1736990984689,3.10854909,712.88,711.32,4.508]
[1736990984890,3.10854909,712.87,711.32,4.508]
[1736990985191,3.10854909,712.86,711.32,4.508]
[1736990985493,3.10854909,712.85,711.32,4.508]
[1736990985788,3.10854909,712.84,711.32,4.508]
[1736990985993,3.10854909,712.83,711.32,4.508]
[1736990986192,1.05469153,712.91,711.32,4.508]
[1736990986193,3.10854909,712.82,711.32,4.508]
[1736990986394,3.10854909,712.81,711.32,4.508]
[1736990986592,3.10854909,712.8,711.32,4.508]
[1736990986895,3.10854909,712.79,711.32,4.508]
[1736990987095,3.10854909,712.78,711.32,4.508]
[1736990987394,3.10854909,712.77,711.32,4.508]
[1736990987595,3.10854909,712.76,711.32,4.508]
[1736990987895,3.10854909,712.75,711.32,4.508]
[1736990988195,3.10854909,712.74,711.32,4.508]
[1736990988393,3.10854909,712.73,711.32,4.508]
[1736990988592,3.10854909,712.72,711.32,4.508]
[1736990988788,3.10854909,712.71,711.32,4.508]
[1736990988993,3.10854909,712.7,711.32,4.508]
[1736990989191,3.10854909,712.69,711.32,4.508]
[1736990989394,1.89578449,712.68,711.32,4.508]
[1736990989595,1.89578449,712.67,711.32,4.508]
[1736990989890,1.26562983,713.53,711.32,4.508]
[1736990989891,1.89578449,712.66,711.32,4.508]
[1736990990094,1.89578449,712.65,711.32,4.508]
[1736990990397,1.89578449,712.64,711.32,4.508]
[1736990990593,1.89578449,712.63,711.32,4.508]
[1736990990792,1.89578449,712.62,711.32,4.508]
[1736990990996,1.05469153,712.95,711.32,4.508]
[1736990991297,4.16304521,712.94,711.32,4.508]
[1736990991493,3.10835368,712.93,711.32,4.508]
[1736990991696,3.10835368,712.92,711.32,4.508]
[1736990991892,3.10835368,712.91,711.32,4.508]
[1736990992092,3.10835368,712.9,711.32,4.508]
[1736990992295,3.10835368,712.89,711.32,4.508]
[1736990992492,3.10835368,712.88,711.32,4.508]
[1736990992698,3.10835368,712.87,711.32,4.508]
[1736990992997,1.05469153,713.21,711.32,4.508]
[1736990992998,3.10835368,712.86,711.32,4.508]
[1736990993194,3.10835368,712.85,711.32,4.508]
[1736990993395,1.05469153,713.21,711.32,4.508]
[1736990993396,3.10835368,712.84,711.32,4.508]
[1736990993592,3.10835368,712.83,711.32,4.508]
[1736990993798,3.10835368,712.82,711.32,4.508]
[1736990994093,3.10835368,712.81,711.32,4.508]
[1736990994297,1.89567089,712.8,711.32,4.508]
[1736990994498,1.89567089,712.79,711.32,4.508]
[1736990994690,1.89567089,712.78,711.32,4.508]
[1736990994895,1.89567089,712.77,711.32,4.508]
[1736990995195,1.89567089,712.76,711.32,4.508]
[1736990995395,1.89567089,712.75,711.32,4.508]
[1736990995593,1.89567089,712.74,711.32,4.508]
[1736990995792,1.89567089,712.73,711.32,4.508]
[1736990995993,1.89567089,712.72,711.32,4.508]
[1736990996197,1.89567089,712.71,711.32,4.508]
[1736990996398,1.89567089,712.7,711.32,4.508]
[1736990996600,1.89567089,712.69,711.32,4.508]
[1736990996904,1.26562983,714.01,711.32,4.508]
[1736990996905,1.13774415,712.68,711.32,4.508]
[1736990997102,1.05469153,713.18,711.32,4.508]
[1736990997402,3.10794976,713.17,711.32,4.508]
[1736990997601,3.10794976,713.16,711.32,4.508]
[1736990997796,1.05469153,713.13,711.32,4.508]
[1736990997999,3.10794976,713.12,711.32,4.508]
[1736990998198,3.10794976,713.11,711.32,4.508]
[1736990998395,1.05469153,713.13,711.32,4.508]
[1736990998396,3.10794976,713.1,711.32,4.508]
[1736990998597,3.10794976,713.09,711.32,4.508]
[1736990998801,3.10794976,713.08,711.32,4.508]
[1736990998998,3.10794976,713.07,711.32,4.508]
[1736990999194,3.10794976,713.06,711.32,4.508]
[1736990999396,3.10794976,713.05,711.32,5.632]
[1736990999600,3.10794976,713.04,711.32,5.632]
[1736990999797,3.10794976,713.03,711.32,5.632]
[1736991000002,3.10794976,713.02,711.32,5.632]
[1736991000202,3.10794976,713.01,711.32,5.632]
[1736991000503,3.10794976,713.0,711.32,5.632]
[1736991000704,3.10794976,712.99,711.32,5.632]
[1736991000903,3.10794976,712.98,711.32,5.632]
[1736991001204,3.10794976,712.97,711.32,5.632]
[1736991001400,3.10794976,712.96,711.32,5.632]
[1736991001597,4.16264129,712.95,711.32,5.632]
[1736991001903,3.10794976,712.94,711.32,7.351]
[1736991002204,3.10794976,712.93,711.32,7.351]
[1736991002510,1.05469153,712.86,711.35,1.04753164]
[1736991002704,3.10794976,712.85,711.35,1.04753164]
[1736991002902,3.10794976,712.84,711.35,2.61453164]
[1736991003102,3.10794976,712.83,711.35,2.61453164]
[1736991003304,3.10794976,712.82,711.36,1.04753164]
[1736991003500,3.10794976,712.81,711.36,1.04753164]
[1736991003703,3.10794976,712.8,711.36,1.04753164]
[1736991003904,3.10794976,712.79,711.35,1.567]
[1736991004103,3.10794976,712.78,711.36,3.137]
[1736991004300,3.10794976,712.77,711.36,3.137]
[1736991004607,3.10843951,712.76,711.36,3.137]
[1736991004805,3.10843951,712.75,711.36,3.137]
[1736991005004,3.10843951,712.74,711.36,3.137]
[1736991005206,3.10843951,712.73,711.36,3.137]
[1736991005503,3.10843951,712.72,711.36,3.137]
[1736991005705,3.10843951,712.71,711.36,3.137]
[1736991005900,3.10843951,712.7,711.36,3.137]
[1736991006106,3.10843951,712.69,711.36,3.137]
[1736991006310,3.10843951,712.68,711.36,3.137]
[1736991006509,3.10843951,712.67,711.36,3.137]
[1736991006702,3.10843951,712.66,711.36,3.137]
[1736991006907,3.10843951,712.65,711.36,3.137]
[1736991007107,3.10843951,712.64,711.36,3.137]
[1736991007404,1.89591289,712.63,711.36,3.137]
[1736991007607,1.89591289,712.62,711.36,3.137]
[1736991007808,1.89591289,712.61,711.36,3.137]
[1736991008008,1.89591289,712.6,711.36,3.137]
[1736991008209,1.89591289,712.59,711.36,3.137]
[1736991008410,1.89591289,712.58,711.36,3.137]
[1736991008712,1.89591289,712.57,711.36,3.137]
[1736991008905,1.89591289,712.56,711.36,3.137]
[1736991009209,1.89591289,712.55,711.36,3.137]
[1736991009410,1.89591289,712.54,711.36,3.137]
[1736991009612,1.89591289,712.53,711.36,3.137]
[1736991009810,1.13808375,712.52,711.36,3.137]
[1736991010013,1.13808375,712.51,711.36,3.137]
[1736991010313,1.05469153,712.85,711.36,3.137]
[1736991010611,3.11105562,712.84,711.36,3.137]
[1736991010811,3.11105562,712.83,711.36,3.137]
[1736991011011,3.11105562,712.82,711.36,3.137]
[1736991011206,3.11105562,712.81,711.36,3.137]
[1736991011413,3.11105562,712.8,711.36,3.137]
[1736991011608,3.11105562,712.79,711.36,3.137]
[1736991011808,3.11105562,712.78,711.36,3.137]
[1736991012006,3.11105562,712.77,711.36,3.137]
[1736991012210,3.11105562,712.76,711.36,3.137]
[1736991012410,3.11105562,712.75,711.36,3.137]
[1736991012613,3.11105562,712.74,711.36,3.137]
[1736991012812,3.11105562,712.73,711.36,3.137]
[1736991013111,3.11105562,712.72,711.36,4.261]
[1736991013308,3.11105562,712.71,711.36,4.261]
[1736991013508,3.11105562,712.7,711.36,4.261]
[1736991013714,3.11105562,712.69,711.37,0.28114764]
[1736991013914,3.11105562,712.68,711.37,0.28114764]
[1736991014112,3.11105562,712.67,711.37,0.28114764]
[1736991014312,3.11105562,712.66,711.37,0.28114764]
[1736991014511,3.11105562,712.65,711.37,0.28114764]
[1736991014815,3.11105562,712.64,711.37,0.28114764]
[1736991015005,3.11105562,712.63,711.37,0.28114764]
[1736991015208,3.11105562,712.62,711.37,0.28114764]
[1736991015411,3.11105562,712.61,711.37,0.28114764]
[1736991015611,3.11105562,712.6,711.37,0.28114764]
[1736991015810,3.11105562,712.59,711.37,0.28114764]
[1736991016013,3.11105562,712.58,711.37,0.28114764]
[1736991016212,1.05469153,712.69,711.37,0.28114764]
[1736991016213,3.11105562,712.57,711.37,4.65014764]
[1736991016409,3.11105562,712.56,711.37,4.65014764]
[1736991016612,3.11105562,712.55,711.37,4.65014764]
[1736991016812,3.11105562,712.54,711.37,4.65014764]
[1736991017009,3.11105562,712.53,711.37,4.65014764]
[1736991017214,3.11105562,712.52,711.37,4.65014764]
[1736991017509,3.11105562,712.51,711.37,4.65014764]
[1736991017811,3.11105562,712.5,711.37,4.65014764]
[1736991018014,3.11105562,712.49,711.37,4.65014764]
[1736991018214,3.11105562,712.48,711.37,4.65014764]
[1736991018511,3.11105562,712.47,711.37,4.65014764]
[1736991018816,3.11105562,712.46,711.37,4.65014764]
[1736991019008,3.11105562,712.45,711.37,4.65014764]
[1736991019213,1.26562983,713.26,711.37,4.65014764]
[1736991019214,3.3690959,712.44,711.37,4.65014764]
[1736991019413,3.11105562,712.43,711.37,4.65014764]
[1736991019614,3.11105562,712.42,711.37,4.65014764]
[1736991019811,3.11105562,712.41,711.37,5.77414764]
[1736991020009,3.11105562,712.4,711.37,5.77414764]
[1736991020216,3.11105562,712.39,711.37,5.77414764]
[1736991020415,1.05469153,712.6,711.37,5.77414764]
[1736991020416,3.11105562,712.38,711.37,5.77414764]
[1736991020618,3.11105562,712.37,711.37,5.77414764]
[1736991020816,3.11105562,712.36,711.37,5.77414764]
[1736991021013,3.11105562,712.35,711.37,5.77414764]
[1736991021317,3.11105562,712.34,711.37,5.77414764]
[1736991021520,3.11105562,712.33,711.37,5.77414764]
[1736991021716,3.11105562,712.32,711.37,5.77414764]
[1736991021911,3.11105562,712.31,711.37,5.77414764]
[1736991022113,3.11105562,712.3,711.37,5.77414764]
[1736991022414,3.11105562,712.29,711.37,5.77414764]
[1736991022621,3.11105562,712.28,711.37,5.77414764]
[1736991022821,3.11105562,712.27,711.37,5.77414764]
[1736991023020,1.89730967,712.26,711.37,5.77414764]
[1736991023218,1.89730967,712.25,711.37,5.77414764]
[1736991023422,1.89730967,712.24,711.37,5.77414764]
[1736991023622,1.89730967,712.23,711.37,5.77414764]
[1736991023818,1.89730967,712.22,711.37,5.77414764]
[1736991024024,1.89730967,712.21,711.37,5.77414764]
[1736991024224,1.13871845,712.2,711.37,5.77414764]
[1736991024421,1.05469153,712.75,711.37,5.77414764]
[1736991024725,3.64179123,712.74,711.37,5.77414764]
[1736991024926,3.64179517,712.73,711.37,5.77414764]
[1736991025127,3.6417991,712.72,711.37,5.77414764]
[1736991025427,3.64180304,712.71,711.37,5.77414764]
[1736991025625,3.64180698,712.7,711.37,5.77414764]
[1736991025827,3.361184,712.69,711.37,5.77414764]
[1736991026022,3.361184,712.68,711.37,5.77414764]
[1736991026226,3.361184,712.67,711.37,5.77414764]
[1736991026420,3.64182273,712.66,711.37,5.77414764]
[1736991026621,3.361184,712.65,711.37,5.77414764]
[1736991026821,0.28063873,712.66,711.37,5.77414764]
[1736991026822,3.361184,712.64,711.37,5.77414764]
[1736991027021,3.361184,712.63,711.37,5.77414764]
[1736991027326,0.28063873,712.66,711.37,5.77414764]
[1736991027327,3.361184,712.62,711.37,5.77414764]
[1736991027526,3.361184,712.61,711.37,5.77414764]
[1736991027727,3.36018848,712.6,711.37,5.77414764]
[1736991028028,3.36018848,712.59,711.37,7.09214764]
[1736991028229,3.36018848,712.58,711.37,7.09214764]
[1736991028426,3.36018848,712.57,711.37,7.09214764]
[1736991028626,3.36018848,712.56,711.37,7.09214764]
[1736991028822,3.36018933,712.55,711.37,7.09214764]
[1736991029122,3.36018933,712.54,711.37,7.09214764]
[1736991029323,3.36018933,712.53,711.37,7.09214764]
[1736991029525,3.36018933,712.52,711.37,7.09214764]
[1736991029725,3.36018933,712.51,711.37,7.09214764]
[1736991029924,3.36018933,712.5,711.37,7.09214764]
[1736991030227,3.10213972,712.49,711.37,7.09214764]
[1736991030428,3.10213972,712.48,711.37,7.09214764]
[1736991030729,1.89146063,712.47,711.37,7.09214764]
[1736991030926,1.89146063,712.46,711.37,7.09214764]
[1736991031122,1.89146063,712.45,711.37,7.09214764]
[1736991031428,0.28063873,712.66,711.37,7.09214764]
[1736991031429,3.10213972,712.44,711.37,7.09214764]
[1736991031623,3.10213972,712.43,711.37,7.09214764]
[1736991031828,3.10213972,712.42,711.37,7.09214764]
[1736991032022,3.10213972,712.41,711.37,7.09214764]
[1736991032227,3.10213972,712.4,711.37,7.09214764]
[1736991032422,3.10213972,712.39,711.37,7.09214764]
[1736991032626,1.89146063,712.38,711.37,7.09214764]
[1736991032826,1.1347862,712.37,711.37,7.09214764]
[1736991033021,2.34546529,712.36,711.37,7.09214764]
[1736991033327,3.10213972,712.35,711.37,7.09214764]
[1736991033529,3.09950902,712.34,711.37,7.09214764]
[1736991033728,3.09950902,712.33,711.37,7.09214764]
[1736991033928,1.89146063,712.32,711.37,7.09214764]
[1736991034229,1.89146063,712.31,711.37,7.09214764]
[1736991034421,1.89146063,712.3,711.37,7.09214764]
[1736991034625,1.89146063,712.29,711.37,7.09214764]
[1736991034827,1.89146063,712.28,711.37,7.09214764]
[1736991035029,1.89146063,712.27,711.37,7.09214764]
[1736991035229,1.88963459,712.26,711.37,7.09214764]
[1736991035423,1.88963459,712.25,711.37,7.09214764]
[1736991035625,1.1347862,712.24,711.37,7.09214764]
[1736991035826,0.28063873,712.66,711.37,7.09214764]
[1736991036027,3.0955244,712.65,711.37,7.09214764]
[1736991036228,3.0955244,712.64,711.37,7.09214764]
[1736991036523,3.0955244,712.63,711.37,7.09214764]
[1736991036728,3.37617888,712.62,711.37,7.09214764]
[1736991036928,3.37618282,712.61,711.37,7.09214764]
[1736991037131,3.0955244,712.6,711.37,7.09214764]